[Event "Titled Tuesday Blitz December 06 Early 2022"]
[White "Valle Maytin, Luis Enrique"]
[Black "Tanenbaum, Zachary"]
[WhiteFideId "3503666"]
[BlackFideId "2060850"]
[WhiteElo "2225"]
[BlackElo "2175"]
[Result "0-1"]
[Round "01"]
[TimeControl "180+1"]
[Date "2022.12.07"]
[WhiteClock "0:00:10"]
[BlackClock "0:00:21"]

1. e4 {[%clk 0:02:44]}  e5 {[%clk 0:02:47]} 2. Nf3 {[%clk 0:01:54]}  Nc6 {[%clk 0:02:42]} 3. Bb5 {[%clk 0:01:54]}  a6 {[%clk 0:02:38]} 4. Ba4 {[%clk 0:01:55]}  d6 {[%clk 0:02:36]} 5. O-O {[%clk 0:01:55]}  Nf6 {[%clk 0:02:36]} 6. Re1 {[%clk 0:01:54]}  Be7 {[%clk 0:02:36]} 7. c3 {[%clk 0:01:54]}  O-O {[%clk 0:02:36]} 8. d4 {[%clk 0:01:54]}  b5 {[%clk 0:02:36]} 9. Bc2 {[%clk 0:01:53]}  Bg4 {[%clk 0:02:36]} 10. h3 {[%clk 0:01:53]}  Bxf3 {[%clk 0:02:36]} 11. gxf3 {[%clk 0:01:48]}  Nh5 {[%clk 0:02:34]} 12. Kh2 {[%clk 0:01:40]}  Bg5 {[%clk 0:02:32]} 13. Rg1 {[%clk 0:01:33]}  Bxc1 {[%clk 0:02:24]} 14. Qxc1 {[%clk 0:01:33]}  Qh4 {[%clk 0:02:24]} 15. Rg2 {[%clk 0:01:32]}  Nf4 {[%clk 0:02:23]} 16. Rg3 {[%clk 0:01:31]}  exd4 {[%clk 0:02:19]} 17. Qg1 {[%clk 0:01:24]}  g6 {[%clk 0:02:12]} 18. Nd2 {[%clk 0:01:07]}  Qf6 {[%clk 0:01:53]} 19. Qf1 {[%clk 0:01:00]}  dxc3 {[%clk 0:01:51]} 20. Nb3 {[%clk 0:00:51]}  cxb2 {[%clk 0:01:51]} 21. Rb1 {[%clk 0:00:51]}  Ne5 {[%clk 0:01:36]} 22. Nd2 {[%clk 0:00:46]}  c5 {[%clk 0:01:28]} 23. Qe1 {[%clk 0:00:40]}  c4 {[%clk 0:01:20]} 24. Qe3 {[%clk 0:00:39]}  c3 {[%clk 0:01:19]} 25. Nb3 {[%clk 0:00:28]}  Rac8 {[%clk 0:01:17]} 26. Rbg1 {[%clk 0:00:20]}  Nc4 {[%clk 0:01:14]} 27. Qe1 {[%clk 0:00:18]}  Na3 {[%clk 0:01:12]} 28. Qd1 {[%clk 0:00:17]}  Rfe8 {[%clk 0:01:04]} 29. Rg5 {[%clk 0:00:17]}  Re5 {[%clk 0:00:58]} 30. R5g4 {[%clk 0:00:16]}  Rh5 {[%clk 0:00:52]} 31. R1g3 {[%clk 0:00:15]}  b1=Q {[%clk 0:00:47]} 32. Bxb1 {[%clk 0:00:15]}  c2 {[%clk 0:00:48]} 33. Bxc2 {[%clk 0:00:16]}  Rxc2 {[%clk 0:00:47]} 34. Qe1 {[%clk 0:00:16]}  Nd3 {[%clk 0:00:46]} 35. Qe3 {[%clk 0:00:14]}  Nxf2 {[%clk 0:00:46]} 36. Rf4 {[%clk 0:00:10]}  Qxf4 {[%clk 0:00:26]} 37. Qxf4 {[%clk 0:00:09]}  Nxh3+ {[%clk 0:00:26]} 38. Qd2 {[%clk 0:00:07]}  Rxd2+ {[%clk 0:00:26]} 39. Nxd2 {[%clk 0:00:07]}  Nf4+ {[%clk 0:00:27]} 40. Kg1 {[%clk 0:00:07]}  Ne2+ {[%clk 0:00:27]} 41. Kf2 {[%clk 0:00:07]}  Nxg3 {[%clk 0:00:27]} 42. Kxg3 {[%clk 0:00:08]}  d5 {[%clk 0:00:27]} 43. Nb3 {[%clk 0:00:09]}  dxe4 {[%clk 0:00:27]} 44. fxe4 {[%clk 0:00:10]}  Nc4 {[%clk 0:00:24]} 45. Kf4 {[%clk 0:00:10]}  f6 {[%clk 0:00:24]} 46. Nd4 {[%clk 0:00:11]}  Kf7 {[%clk 0:00:24]} 47. Nc6 {[%clk 0:00:11]}  Rh4+ {[%clk 0:00:23]} 48. Kf3 {[%clk 0:00:10]}  Ne5+ {[%clk 0:00:23]} 49. Kg3 {[%clk 0:00:10]}  Rxe4 {[%clk 0:00:21]} 0-1


[Site "https://www.chess.com"]

[Event "Titled Tuesday Blitz December 06 Early 2022"]
[White "Wartiovaara, Oliver"]
[Black "Paravyan, David"]
[WhiteFideId "513024"]
[BlackFideId "4194985"]
[WhiteElo "2214"]
[BlackElo "2551"]
[Result "0-1"]
[Round "01"]
[TimeControl "180+1"]
[Date "2022.12.06"]
[WhiteClock "0:00:03"]
[BlackClock "0:01:36"]

1. d4 {[%clk 0:00:37]}  Nf6 {[%clk 0:02:56]} 2. c4 {[%clk 0:00:37]}  g6 {[%clk 0:02:56]} 3. Nf3 {[%clk 0:00:36]}  Bg7 {[%clk 0:02:56]} 4. g3 {[%clk 0:00:37]}  c6 {[%clk 0:02:55]} 5. Bg2 {[%clk 0:00:37]}  d5 {[%clk 0:02:56]} 6. O-O {[%clk 0:00:37]}  O-O {[%clk 0:02:56]} 7. Ne5 {[%clk 0:00:36]}  dxc4 {[%clk 0:02:55]} 8. Nxc4 {[%clk 0:00:36]}  Be6 {[%clk 0:02:54]} 9. Ne5 {[%clk 0:00:36]}  Ng4 {[%clk 0:02:53]} 10. Nf3 {[%clk 0:00:34]}  c5 {[%clk 0:02:54]} 11. dxc5 {[%clk 0:00:29]}  Na6 {[%clk 0:02:53]} 12. c6 {[%clk 0:00:29]}  bxc6 {[%clk 0:02:53]} 13. Qc2 {[%clk 0:00:29]}  Nb4 {[%clk 0:02:43]} 14. Qa4 {[%clk 0:00:29]}  a5 {[%clk 0:02:28]} 15. Nc3 {[%clk 0:00:29]}  Qb6 {[%clk 0:02:15]} 16. h3 {[%clk 0:00:27]}  Ne5 {[%clk 0:02:15]} 17. Be3 {[%clk 0:00:26]}  Nxf3+ {[%clk 0:02:08]} 18. Bxf3 {[%clk 0:00:27]}  Qa6 {[%clk 0:02:08]} 19. Kg2 {[%clk 0:00:26]}  Nd5 {[%clk 0:02:07]} 20. Nxd5 {[%clk 0:00:25]}  Bxd5 {[%clk 0:02:07]} 21. Bxd5 {[%clk 0:00:24]}  cxd5 {[%clk 0:02:08]} 22. Qc2 {[%clk 0:00:22]}  Rfc8 {[%clk 0:02:07]} 23. Qd2 {[%clk 0:00:22]}  d4 {[%clk 0:02:05]} 24. Bh6 {[%clk 0:00:14]}  Bxh6 {[%clk 0:02:02]} 25. Qxh6 {[%clk 0:00:15]}  Rc2 {[%clk 0:02:03]} 26. Rad1 {[%clk 0:00:09]}  e5 {[%clk 0:02:00]} 27. Rd2 {[%clk 0:00:07]}  Qb7+ {[%clk 0:01:52]} 28. f3 {[%clk 0:00:05]}  Rac8 {[%clk 0:01:47]} 29. Rfd1 {[%clk 0:00:05]}  Qxb2 {[%clk 0:01:42]} 30. Rxc2 {[%clk 0:00:04]}  Rxc2 {[%clk 0:01:41]} 31. Kf1 {[%clk 0:00:03]}  Rxe2 {[%clk 0:01:36]} 32. Qc1 {[%clk 0:00:03]}  Rf2+ {[%clk 0:01:36]} 0-1


[Site "https://www.chess.com"]

[Event "Titled Tuesday Blitz December 06 Early 2022"]
[White "Zaragatski, Ilja"]
[Black "Hansen, Eric"]
[WhiteFideId "4655192"]
[BlackFideId "2606771"]
[WhiteElo "2460"]
[BlackElo "2568"]
[Result "0-1"]
[Round "01"]
[TimeControl "180+1"]
[Date "2022.12.06"]
[WhiteClock "0:00:02"]
[BlackClock "0:00:34"]

1. g3 {[%clk 0:02:41]}  d5 {[%clk 0:02:51]} 2. Nf3 {[%clk 0:02:34]}  c6 {[%clk 0:02:47]} 3. Bg2 {[%clk 0:02:20]}  Bg4 {[%clk 0:02:41]} 4. c4 {[%clk 0:01:59]}  e6 {[%clk 0:02:37]} 5. cxd5 {[%clk 0:01:54]}  exd5 {[%clk 0:02:34]} 6. Qb3 {[%clk 0:01:50]}  Qb6 {[%clk 0:02:31]} 7. Qc2 {[%clk 0:01:50]}  Nd7 {[%clk 0:02:30]} 8. d3 {[%clk 0:01:48]}  Ngf6 {[%clk 0:02:26]} 9. O-O {[%clk 0:01:44]}  Bc5 {[%clk 0:02:25]} 10. Nc3 {[%clk 0:01:41]}  Qa6 {[%clk 0:02:14]} 11. e4 {[%clk 0:01:34]}  O-O {[%clk 0:02:12]} 12. h3 {[%clk 0:01:20]}  Bh5 {[%clk 0:01:49]} 13. Nh4 {[%clk 0:01:00]}  Ne5 {[%clk 0:01:45]} 14. exd5 {[%clk 0:00:41]}  Nxd3 {[%clk 0:01:44]} 15. dxc6 {[%clk 0:00:37]}  bxc6 {[%clk 0:01:44]} 16. Bg5 {[%clk 0:00:26]}  Nd5 {[%clk 0:01:06]} 17. Na4 {[%clk 0:00:23]}  Bd4 {[%clk 0:00:55]} 18. Rab1 {[%clk 0:00:15]}  h6 {[%clk 0:00:50]} 19. Bd2 {[%clk 0:00:07]}  Be2 {[%clk 0:00:50]} 20. Nf5 {[%clk 0:00:05]}  Bf6 {[%clk 0:00:43]} 21. Nc5 {[%clk 0:00:01]}  Nxc5 {[%clk 0:00:41]} 22. Qxc5 {[%clk 0:00:02]}  Bd3 {[%clk 0:00:34]} 0-1


[Site "https://www.chess.com"]

[Event "Titled Tuesday Blitz December 06 Early 2022"]
[White "Andreev, Konstantin"]
[Black "Drygalov, Sergey"]
[WhiteFideId "24239305"]
[BlackFideId "24171743"]
[WhiteElo "2106"]
[BlackElo "2533"]
[Result "0-1"]
[Round "02"]
[TimeControl "180+1"]
[Date "2022.12.07"]
[WhiteClock "0:01:16"]
[BlackClock "0:02:01"]

1. e4 {[%clk 0:03:00]}  c5 {[%clk 0:03:00]} 2. Nf3 {[%clk 0:03:00]}  d6 {[%clk 0:03:01]} 3. d4 {[%clk 0:03:00]}  cxd4 {[%clk 0:03:01]} 4. Nxd4 {[%clk 0:03:01]}  Nf6 {[%clk 0:03:02]} 5. Nc3 {[%clk 0:03:01]}  a6 {[%clk 0:03:03]} 6. h4 {[%clk 0:03:00]}  e5 {[%clk 0:03:03]} 7. Nb3 {[%clk 0:03:00]}  Be7 {[%clk 0:03:03]} 8. Bg5 {[%clk 0:02:57]}  Be6 {[%clk 0:03:03]} 9. Bxf6 {[%clk 0:02:56]}  Bxf6 {[%clk 0:03:04]} 10. g3 {[%clk 0:02:56]}  Nc6 {[%clk 0:03:04]} 11. Qd3 {[%clk 0:02:55]}  Nd4 {[%clk 0:03:04]} 12. O-O-O {[%clk 0:02:33]}  O-O {[%clk 0:03:04]} 13. Kb1 {[%clk 0:02:33]}  b5 {[%clk 0:02:56]} 14. f4 {[%clk 0:02:32]}  b4 {[%clk 0:02:53]} 15. Nxd4 {[%clk 0:02:21]}  exd4 {[%clk 0:02:48]} 16. Nd5 {[%clk 0:02:16]}  Bxd5 {[%clk 0:02:47]} 17. exd5 {[%clk 0:02:17]}  Re8 {[%clk 0:02:48]} 18. Qf5 {[%clk 0:02:12]}  g6 {[%clk 0:02:44]} 19. Qg4 {[%clk 0:02:11]}  h5 {[%clk 0:02:35]} 20. Qf3 {[%clk 0:02:09]}  Re3 {[%clk 0:02:35]} 21. Qf2 {[%clk 0:02:08]}  a5 {[%clk 0:02:23]} 22. Bd3 {[%clk 0:02:08]}  a4 {[%clk 0:02:23]} 23. g4 {[%clk 0:02:03]}  a3 {[%clk 0:02:07]} 24. gxh5 {[%clk 0:01:34]}  axb2 {[%clk 0:02:06]} 25. hxg6 {[%clk 0:01:23]}  Qa5 {[%clk 0:02:02]} 26. Kxb2 {[%clk 0:01:17]}  Qxa2+ {[%clk 0:02:00]} 27. Kc1 {[%clk 0:01:16]}  Qa1+ {[%clk 0:02:01]} 0-1


[Site "https://www.chess.com"]

[Event "Titled Tuesday Blitz December 06 Early 2022"]
[White "Atakhan, Abtin"]
[Black "Oparin, Grigoriy"]
[WhiteFideId "22502203"]
[BlackFideId "24125890"]
[WhiteElo "2189"]
[BlackElo "2641"]
[Result "0-1"]
[Round "02"]
[TimeControl "180+1"]
[Date "2022.12.06"]
[WhiteClock "0:00:06"]
[BlackClock "0:00:28"]

1. d4 {[%clk 0:03:00]}  Nf6 {[%clk 0:02:59]} 2. c4 {[%clk 0:03:01]}  e6 {[%clk 0:03:00]} 3. Nf3 {[%clk 0:03:02]}  d5 {[%clk 0:03:01]} 4. Nc3 {[%clk 0:03:02]}  Nbd7 {[%clk 0:03:01]} 5. Bf4 {[%clk 0:03:01]}  dxc4 {[%clk 0:03:01]} 6. e3 {[%clk 0:03:02]}  Bd6 {[%clk 0:03:01]} 7. Bxc4 {[%clk 0:02:58]}  Bxf4 {[%clk 0:02:57]} 8. exf4 {[%clk 0:02:59]}  O-O {[%clk 0:02:57]} 9. O-O {[%clk 0:02:59]}  b6 {[%clk 0:02:58]} 10. Qe2 {[%clk 0:02:56]}  Bb7 {[%clk 0:02:58]} 11. Ba6 {[%clk 0:02:57]}  Bxf3 {[%clk 0:02:54]} 12. Qxf3 {[%clk 0:02:57]}  c5 {[%clk 0:02:55]} 13. Rfd1 {[%clk 0:02:51]}  Qe7 {[%clk 0:02:55]} 14. Nb5 {[%clk 0:02:48]}  cxd4 {[%clk 0:02:40]} 15. Nxd4 {[%clk 0:02:48]}  Nc5 {[%clk 0:02:37]} 16. Bb5 {[%clk 0:02:33]}  a6 {[%clk 0:02:33]} 17. Bc6 {[%clk 0:02:29]}  Rac8 {[%clk 0:02:25]} 18. b4 {[%clk 0:02:29]}  Ncd7 {[%clk 0:02:25]} 19. Bb7 {[%clk 0:02:28]}  Rc7 {[%clk 0:02:20]} 20. Nc6 {[%clk 0:02:28]}  Qe8 {[%clk 0:02:19]} 21. Bxa6 {[%clk 0:02:26]}  Qa8 {[%clk 0:02:18]} 22. Ne7+ {[%clk 0:02:17]}  Kh8 {[%clk 0:02:18]} 23. Qxa8 {[%clk 0:02:18]}  Rxa8 {[%clk 0:02:18]} 24. Bb5 {[%clk 0:02:19]}  Nf8 {[%clk 0:02:06]} 25. Nc6 {[%clk 0:02:16]}  Nd5 {[%clk 0:02:05]} 26. a4 {[%clk 0:02:01]}  Nxf4 {[%clk 0:01:59]} 27. Rac1 {[%clk 0:01:52]}  Nd5 {[%clk 0:01:58]} 28. Ne5 {[%clk 0:01:34]}  Raa7 {[%clk 0:01:40]} 29. Nd3 {[%clk 0:01:31]}  g5 {[%clk 0:01:34]} 30. Rxc7 {[%clk 0:01:28]}  Rxc7 {[%clk 0:01:33]} 31. Ra1 {[%clk 0:01:27]}  Nc3 {[%clk 0:01:28]} 32. Ba6 {[%clk 0:01:19]}  Nd7 {[%clk 0:01:20]} 33. g3 {[%clk 0:01:10]}  Nf6 {[%clk 0:01:18]} 34. a5 {[%clk 0:01:06]}  bxa5 {[%clk 0:01:17]} 35. Rxa5 {[%clk 0:01:05]}  Nfd5 {[%clk 0:01:15]} 36. b5 {[%clk 0:01:04]}  Nb6 {[%clk 0:01:13]} 37. Nb4 {[%clk 0:01:00]}  Rd7 {[%clk 0:01:05]} 38. Ra1 {[%clk 0:00:58]}  g4 {[%clk 0:01:02]} 39. Nc6 {[%clk 0:00:57]}  Kg7 {[%clk 0:00:55]} 40. Kg2 {[%clk 0:00:56]}  Rd2 {[%clk 0:00:54]} 41. Ne5 {[%clk 0:00:53]}  f5 {[%clk 0:00:52]} 42. Bb7 {[%clk 0:00:49]}  Kf6 {[%clk 0:00:52]} 43. Re1 {[%clk 0:00:41]}  Nd1 {[%clk 0:00:49]} 44. Nc6 {[%clk 0:00:32]}  Nxf2 {[%clk 0:00:48]} 45. Kg1 {[%clk 0:00:28]}  Nd3 {[%clk 0:00:42]} 46. Rf1 {[%clk 0:00:28]}  h5 {[%clk 0:00:39]} 47. Nd4 {[%clk 0:00:27]}  Ne5 {[%clk 0:00:38]} 48. Nb3 {[%clk 0:00:21]}  Rb2 {[%clk 0:00:37]} 49. Nd4 {[%clk 0:00:20]}  Rb4 {[%clk 0:00:35]} 50. Rd1 {[%clk 0:00:17]}  Nbc4 {[%clk 0:00:35]} 51. Bc6 {[%clk 0:00:13]}  Ne3 {[%clk 0:00:34]} 52. Rd2 {[%clk 0:00:13]}  N5c4 {[%clk 0:00:31]} 53. Rd3 {[%clk 0:00:08]}  e5 {[%clk 0:00:31]} 54. Nb3 {[%clk 0:00:07]}  e4 {[%clk 0:00:30]} 55. Rc3 {[%clk 0:00:08]}  Ke5 {[%clk 0:00:28]} 56. Kf2 {[%clk 0:00:06]}  Nd1+ {[%clk 0:00:28]} 0-1


[Site "https://www.chess.com"]

[Event "Titled Tuesday Blitz December 06 Early 2022"]
[White "Bashirli, Saadat"]
[Black "Crevatin, Leo"]
[WhiteFideId "13429990"]
[BlackFideId "1726307"]
[WhiteElo "1408"]
[BlackElo "2190"]
[Result "0-1"]
[Round "02"]
[TimeControl "180+1"]
[Date "2022.12.07"]
[WhiteClock "0:02:22"]
[BlackClock "0:02:12"]

1. d4 {[%clk 0:03:00]}  Nf6 {[%clk 0:02:59]} 2. c4 {[%clk 0:03:01]}  e6 {[%clk 0:02:58]} 3. Nc3 {[%clk 0:03:01]}  Bb4 {[%clk 0:02:57]} 4. e3 {[%clk 0:03:02]}  O-O {[%clk 0:02:57]} 5. Bd3 {[%clk 0:03:02]}  d5 {[%clk 0:02:56]} 6. a3 {[%clk 0:03:01]}  Bxc3+ {[%clk 0:02:56]} 7. bxc3 {[%clk 0:03:02]}  dxc4 {[%clk 0:02:56]} 8. Bxc4 {[%clk 0:03:03]}  c5 {[%clk 0:02:56]} 9. Ne2 {[%clk 0:03:02]}  Qc7 {[%clk 0:02:56]} 10. Bd3 {[%clk 0:02:59]}  Nc6 {[%clk 0:02:54]} 11. O-O {[%clk 0:02:58]}  e5 {[%clk 0:02:54]} 12. dxc5 {[%clk 0:02:53]}  Rd8 {[%clk 0:02:44]} 13. Qc2 {[%clk 0:02:52]}  Be6 {[%clk 0:02:38]} 14. Ng3 {[%clk 0:02:50]}  h6 {[%clk 0:02:34]} 15. Bb2 {[%clk 0:02:49]}  Na5 {[%clk 0:02:32]} 16. Qa4 {[%clk 0:02:37]}  Rxd3 {[%clk 0:02:28]} 17. Ne4 {[%clk 0:02:32]}  Nxe4 {[%clk 0:02:25]} 18. Qxe4 {[%clk 0:02:33]}  Rad8 {[%clk 0:02:23]} 19. f4 {[%clk 0:02:24]}  exf4 {[%clk 0:02:15]} 20. Rxf4 {[%clk 0:02:25]}  Nc4 {[%clk 0:02:13]} 21. Raf1 {[%clk 0:02:22]}  Nxb2 {[%clk 0:02:12]} 0-1


[Site "https://www.chess.com"]

[Event "Titled Tuesday Blitz December 06 Early 2022"]
[White "Borgaonkar Akshay"]
[Black "Makhmudov, Shukhrat"]
[WhiteFideId "25639110"]
[BlackFideId "14200775"]
[WhiteElo "2063"]
[BlackElo "2135"]
[Result "1-0"]
[Round "02"]
[TimeControl "180+1"]
[Date "2022.12.07"]
[WhiteClock "0:01:35"]
[BlackClock "0:00:03"]

1. c3 {[%clk 0:03:00]}  c5 {[%clk 0:02:58]} 2. e4 {[%clk 0:02:58]}  d5 {[%clk 0:02:46]} 3. exd5 {[%clk 0:02:56]}  Qxd5 {[%clk 0:02:45]} 4. Nf3 {[%clk 0:02:56]}  Nc6 {[%clk 0:01:51]} 5. Na3 {[%clk 0:02:55]}  Bg4 {[%clk 0:01:50]} 6. Bc4 {[%clk 0:02:46]}  Qe4+ {[%clk 0:01:45]} 7. Qe2 {[%clk 0:02:46]}  Bxf3 {[%clk 0:01:43]} 8. gxf3 {[%clk 0:02:45]}  Qxe2+ {[%clk 0:01:44]} 9. Bxe2 {[%clk 0:02:44]}  a6 {[%clk 0:01:44]} 10. d3 {[%clk 0:02:41]}  e5 {[%clk 0:01:43]} 11. Nc4 {[%clk 0:02:40]}  b5 {[%clk 0:01:41]} 12. Nb6 {[%clk 0:02:32]}  Rb8 {[%clk 0:01:29]} 13. Nd5 {[%clk 0:02:32]}  Bd6 {[%clk 0:01:22]} 14. f4 {[%clk 0:02:29]}  Nge7 {[%clk 0:01:15]} 15. Nxe7 {[%clk 0:02:28]}  Nxe7 {[%clk 0:01:09]} 16. fxe5 {[%clk 0:02:27]}  Bxe5 {[%clk 0:01:09]} 17. Be3 {[%clk 0:02:27]}  Bd6 {[%clk 0:01:01]} 18. O-O-O {[%clk 0:02:27]}  O-O {[%clk 0:00:57]} 19. d4 {[%clk 0:02:22]}  c4 {[%clk 0:00:55]} 20. Bf3 {[%clk 0:02:20]}  Ng6 {[%clk 0:00:50]} 21. Rdg1 {[%clk 0:02:15]}  Bf4 {[%clk 0:00:46]} 22. h4 {[%clk 0:02:10]}  Rfe8 {[%clk 0:00:41]} 23. h5 {[%clk 0:02:06]}  Bxe3+ {[%clk 0:00:41]} 24. fxe3 {[%clk 0:02:06]}  Rxe3 {[%clk 0:00:18]} 25. hxg6 {[%clk 0:02:04]}  Rxf3 {[%clk 0:00:18]} 26. gxh7+ {[%clk 0:02:02]}  Kh8 {[%clk 0:00:18]} 27. Re1 {[%clk 0:01:59]}  Rf6 {[%clk 0:00:14]} 28. Re7 {[%clk 0:01:56]}  g6 {[%clk 0:00:14]} 29. Rd7 {[%clk 0:01:50]}  Kg7 {[%clk 0:00:14]} 30. Rb7 {[%clk 0:01:49]}  Rh8 {[%clk 0:00:14]} 31. a4 {[%clk 0:01:39]}  bxa4 {[%clk 0:00:13]} 32. Rb4 {[%clk 0:01:38]}  a3 {[%clk 0:00:03]} 33. bxa3 {[%clk 0:01:38]}  Rc6 {[%clk 0:00:03]} 34. Rb7 {[%clk 0:01:35]}  Rf6 {[%clk 0:00:03]} 35. Rc7 {[%clk 0:01:35]}  Rxh7 {[%clk 0:00:03]} 36. Rxh7+ {[%clk 0:01:34]}  Kxh7 {[%clk 0:00:03]} 37. Rxc4 {[%clk 0:01:35]}  g5 {[%clk 0:00:04]} 38. d5 {[%clk 0:01:35]}  Kg6 {[%clk 0:00:03]} 39. Rd4 {[%clk 0:01:35]} 1-0


[Site "https://www.chess.com"]

[Event "Titled Tuesday Blitz December 06 Early 2022"]
[White "Chernomordik, Pavel"]
[Black "Nambiar, Vivek"]
[WhiteFideId "2804530"]
[BlackFideId "5005329"]
[WhiteElo "2193"]
[BlackElo "2117"]
[Result "1-0"]
[Round "02"]
[TimeControl "180+1"]
[Date "2022.12.07"]
[WhiteClock "0:01:09"]
[BlackClock "0:01:25"]

1. e4 {[%clk 0:03:00]}  e6 {[%clk 0:02:59]} 2. Nc3 {[%clk 0:03:00]}  d5 {[%clk 0:02:59]} 3. d4 {[%clk 0:02:59]}  Nf6 {[%clk 0:02:58]} 4. Bg5 {[%clk 0:02:58]}  Be7 {[%clk 0:02:58]} 5. e5 {[%clk 0:02:58]}  Nfd7 {[%clk 0:02:58]} 6. Bxe7 {[%clk 0:02:58]}  Qxe7 {[%clk 0:02:58]} 7. Nb5 {[%clk 0:02:58]}  Nb6 {[%clk 0:02:53]} 8. c3 {[%clk 0:02:58]}  O-O {[%clk 0:02:52]} 9. f4 {[%clk 0:02:57]}  a6 {[%clk 0:02:51]} 10. Na3 {[%clk 0:02:56]}  c5 {[%clk 0:02:51]} 11. Nc2 {[%clk 0:02:56]}  f6 {[%clk 0:02:51]} 12. Nf3 {[%clk 0:02:55]}  cxd4 {[%clk 0:02:48]} 13. Ncxd4 {[%clk 0:02:46]}  fxe5 {[%clk 0:02:48]} 14. fxe5 {[%clk 0:02:44]}  Nc6 {[%clk 0:02:48]} 15. Bd3 {[%clk 0:02:40]}  Nc4 {[%clk 0:02:37]} 16. Qe2 {[%clk 0:02:30]}  Bd7 {[%clk 0:02:30]} 17. O-O {[%clk 0:02:19]}  b5 {[%clk 0:02:19]} 18. Rae1 {[%clk 0:02:14]}  Be8 {[%clk 0:02:17]} 19. b3 {[%clk 0:02:08]}  Nb6 {[%clk 0:02:10]} 20. Nxc6 {[%clk 0:02:01]}  Bxc6 {[%clk 0:02:09]} 21. Nd4 {[%clk 0:02:01]}  Bd7 {[%clk 0:02:00]} 22. Qh5 {[%clk 0:01:58]}  g6 {[%clk 0:01:56]} 23. Qg4 {[%clk 0:01:50]}  Kg7 {[%clk 0:01:44]} 24. h4 {[%clk 0:01:48]}  Rxf1+ {[%clk 0:01:41]} 25. Rxf1 {[%clk 0:01:47]}  Rf8 {[%clk 0:01:35]} 26. Rxf8 {[%clk 0:01:28]}  Kxf8 {[%clk 0:01:33]} 27. h5 {[%clk 0:01:27]}  Kg7 {[%clk 0:01:31]} 28. hxg6 {[%clk 0:01:26]}  hxg6 {[%clk 0:01:30]} 29. Qxg6+ {[%clk 0:01:25]}  Kf8 {[%clk 0:01:30]} 30. Qh6+ {[%clk 0:01:15]}  Ke8 {[%clk 0:01:28]} 31. Qh8+ {[%clk 0:01:10]}  Qf8 {[%clk 0:01:27]} 32. Bg6+ {[%clk 0:01:09]}  Ke7 {[%clk 0:01:25]} 33. Qh4+ {[%clk 0:01:09]} 1-0


[Site "https://www.chess.com"]

[Event "Titled Tuesday Blitz December 06 Early 2022"]
[White "Chernov, Mikhail"]
[Black "Daneshvar, Bardiya"]
[WhiteFideId "24143170"]
[BlackFideId "12576468"]
[WhiteElo "2113"]
[BlackElo "2429"]
[Result "0-1"]
[Round "02"]
[TimeControl "180+1"]
[Date "2022.12.07"]
[WhiteClock "0:00:08"]
[BlackClock "0:01:26"]

1. e4 {[%clk 0:02:56]}  Nf6 {[%clk 0:03:00]} 2. e5 {[%clk 0:02:56]}  Nd5 {[%clk 0:03:01]} 3. d4 {[%clk 0:02:57]}  d6 {[%clk 0:03:01]} 4. Bc4 {[%clk 0:02:54]}  Nb6 {[%clk 0:03:01]} 5. Bb3 {[%clk 0:02:54]}  dxe5 {[%clk 0:03:01]} 6. Qh5 {[%clk 0:02:54]}  e6 {[%clk 0:03:00]} 7. dxe5 {[%clk 0:02:54]}  Nc6 {[%clk 0:02:58]} 8. Nf3 {[%clk 0:02:53]}  g6 {[%clk 0:02:58]} 9. Qg4 {[%clk 0:02:48]}  h5 {[%clk 0:02:58]} 10. Qe4 {[%clk 0:02:48]}  Qe7 {[%clk 0:02:52]} 11. O-O {[%clk 0:02:36]}  Qb4 {[%clk 0:02:50]} 12. Qe2 {[%clk 0:02:23]}  Bd7 {[%clk 0:02:44]} 13. Nc3 {[%clk 0:02:14]}  O-O-O {[%clk 0:02:35]} 14. a3 {[%clk 0:02:01]}  Qa5 {[%clk 0:02:33]} 15. Bd2 {[%clk 0:01:47]}  Qa6 {[%clk 0:02:25]} 16. Qe4 {[%clk 0:01:26]}  Ne7 {[%clk 0:02:22]} 17. Bg5 {[%clk 0:01:21]}  Re8 {[%clk 0:02:15]} 18. Bf6 {[%clk 0:01:20]}  Bc6 {[%clk 0:02:12]} 19. Qf4 {[%clk 0:01:02]}  Bh6 {[%clk 0:02:08]} 20. Qg3 {[%clk 0:01:00]}  Nf5 {[%clk 0:02:04]} 21. Qh3 {[%clk 0:01:00]}  Rhg8 {[%clk 0:02:03]} 22. Ng5 {[%clk 0:00:51]}  Bxg5 {[%clk 0:01:46]} 23. Bxg5 {[%clk 0:00:52]}  Nd7 {[%clk 0:01:46]} 24. Rfe1 {[%clk 0:00:51]}  Qb6 {[%clk 0:01:46]} 25. Rad1 {[%clk 0:00:45]}  Qc5 {[%clk 0:01:45]} 26. Bf6 {[%clk 0:00:33]}  Nxf6 {[%clk 0:01:43]} 27. exf6 {[%clk 0:00:34]}  Rd8 {[%clk 0:01:43]} 28. Rd3 {[%clk 0:00:17]}  Rxd3 {[%clk 0:01:42]} 29. Qxd3 {[%clk 0:00:18]}  Rd8 {[%clk 0:01:42]} 30. Qe2 {[%clk 0:00:19]}  Nd4 {[%clk 0:01:42]} 31. Qe3 {[%clk 0:00:17]}  Qf5 {[%clk 0:01:41]} 32. Rd1 {[%clk 0:00:12]}  Qxf6 {[%clk 0:01:36]} 33. Kh1 {[%clk 0:00:07]}  Nxb3 {[%clk 0:01:30]} 34. cxb3 {[%clk 0:00:08]}  Rxd1+ {[%clk 0:01:28]} 35. Nxd1 {[%clk 0:00:08]}  Qf5 {[%clk 0:01:29]} 36. Qd4 {[%clk 0:00:08]}  Qd5 {[%clk 0:01:26]} 0-1


[Site "https://www.chess.com"]

[Event "Titled Tuesday Blitz December 06 Early 2022"]
[White "Chigaev, Maksim"]
[Black "Lamaze, Simon"]
[WhiteFideId "4108116"]
[BlackFideId "36069264"]
[WhiteElo "2542"]
[BlackElo "2272"]
[Result "1-0"]
[Round "02"]
[TimeControl "180+1"]
[Date "2022.12.06"]
[WhiteClock "0:01:46"]
[BlackClock "0:01:52"]

1. e4 {[%clk 0:03:00]}  c5 {[%clk 0:02:59]} 2. Nf3 {[%clk 0:03:00]}  d6 {[%clk 0:02:59]} 3. d4 {[%clk 0:02:58]}  cxd4 {[%clk 0:03:00]} 4. Nxd4 {[%clk 0:02:58]}  Nf6 {[%clk 0:02:59]} 5. Nc3 {[%clk 0:02:55]}  Nc6 {[%clk 0:02:58]} 6. g3 {[%clk 0:02:52]}  g6 {[%clk 0:02:56]} 7. Bg2 {[%clk 0:02:52]}  Bg7 {[%clk 0:02:56]} 8. Nxc6 {[%clk 0:02:49]}  bxc6 {[%clk 0:02:56]} 9. e5 {[%clk 0:02:49]}  dxe5 {[%clk 0:02:52]} 10. Qxd8+ {[%clk 0:02:49]}  Kxd8 {[%clk 0:02:52]} 11. Bxc6 {[%clk 0:02:49]}  Rb8 {[%clk 0:02:52]} 12. b3 {[%clk 0:02:46]}  Kc7 {[%clk 0:02:51]} 13. Bg2 {[%clk 0:02:46]}  Bb7 {[%clk 0:02:48]} 14. Bxb7 {[%clk 0:02:45]}  Kxb7 {[%clk 0:02:49]} 15. Bb2 {[%clk 0:02:41]}  Kc6 {[%clk 0:02:48]} 16. Ke2 {[%clk 0:02:33]}  e6 {[%clk 0:02:37]} 17. Rhd1 {[%clk 0:02:26]}  Nd5 {[%clk 0:02:36]} 18. Ne4 {[%clk 0:02:25]}  f5 {[%clk 0:02:30]} 19. c4 {[%clk 0:02:10]}  fxe4 {[%clk 0:02:27]} 20. cxd5+ {[%clk 0:02:10]}  exd5 {[%clk 0:02:28]} 21. Rac1+ {[%clk 0:02:11]}  Kd6 {[%clk 0:02:28]} 22. Ba3+ {[%clk 0:02:11]}  Ke6 {[%clk 0:02:21]} 23. Rc6+ {[%clk 0:02:10]}  Kf5 {[%clk 0:02:21]} 24. Rxd5 {[%clk 0:02:08]}  Rhd8 {[%clk 0:02:22]} 25. Rxd8 {[%clk 0:01:49]}  Rxd8 {[%clk 0:02:23]} 26. h3 {[%clk 0:01:49]}  h5 {[%clk 0:02:18]} 27. g4+ {[%clk 0:01:46]}  hxg4 {[%clk 0:01:53]} 28. hxg4+ {[%clk 0:01:47]}  Kg5 {[%clk 0:01:52]} 29. Be7+ {[%clk 0:01:46]} 1-0


[Site "https://www.chess.com"]